fUST/lending_fUST_20250422
["ID","MTS","AMOUNT","RATE_DAILY","PERIOD"]
[358584256,1745278239133,-500.0,0.00025961,2]
[358584257,1745278239142,-500.0,0.00025961,2]
[358584258,1745278239151,-500.0,0.00025961,2]
[358584259,1745278239160,-500.0,0.00025961,2]
[358584260,1745278239169,-500.0,0.00025961,2]
[358584261,1745278239179,-500.0,0.00025961,2]
[358584262,1745278239188,-500.0,0.00025961,2]
[358584263,1745278239197,-500.0,0.00025961,2]
[358584264,1745278239207,-500.0,0.00025961,2]
[358584265,1745278239216,-500.0,0.00025961,2]
[358584266,1745278239225,-500.0,0.00025961,2]
[358584267,1745278239245,-500.0,0.00025961,2]
[358584268,1745278239255,-500.0,0.00025961,2]
[358584269,1745278239265,-500.0,0.00025961,2]
[358584270,1745278239275,-500.0,0.00025961,2]
[358584271,1745278239285,-500.0,0.00025961,2]
[358584272,1745278239294,-499.99999999,0.00025961,2]
[358584273,1745278239304,-500.0,0.00025961,2]
[358584274,1745278239314,-500.0,0.00025961,2]
[358584275,1745278239323,-500.0,0.00025961,2]
[358584276,1745278239333,-500.0,0.00025961,2]
[358584277,1745278239343,-500.0,0.00025961,2]
[358584278,1745278239352,-459.59973562,0.00025961,2]
[358584279,1745278239362,-500.0,0.00025961,2]
[358584280,1745278239372,-500.0,0.00025961,2]
[358584281,1745278239382,-500.0,0.00025961,2]
[358584282,1745278239392,-500.0,0.00025961,2]
[358584283,1745278239401,-588.62154825,0.00025962,2]
[358584284,1745278239411,-151.0,0.00025962,7]
[358584285,1745278239420,-151.0,0.00025962,7]
[358584286,1745278239430,-5663.31940521,0.00025962,2]
[358584287,1745278239440,-48718.56470376,0.00025963,2]
[358584288,1745278239453,-420.86949969,0.00025963,2]
[358584313,1745278241147,-440.52116,0.00025963,2]
[358584325,1745278244136,-2000.0,0.00025963,2]
[358584326,1745278244148,-30307.56410275,0.00025963,2]
[358584327,1745278244157,-2171.31751144,0.00025963,2]
[358584328,1745278244167,-3533.3230305,0.00025967,3]
[358584329,1745278244176,-18898.69231744,0.00025967,2]
[358584334,1745278246764,-3000.0,0.00025967,2]
[358584335,1745278246775,-3557.88,0.00025967,2]
[358584379,1745279432274,-629.16,0.00023867,2]
[358584380,1745279432286,-343.27000162,0.00023867,2]
[358584381,1745279432295,-594.25527078,0.000239,2]
[358584382,1745279432305,-1200.0,0.00024377,2]
[358584383,1745279432314,-300.0,0.00024377,2]
[358584384,1745279432324,-7394.13033522,0.00024378,2]
[358584385,1745279432335,-698.50215418,0.00024378,2]
[358584393,1745279438196,-1691.84983409,0.00024378,2]
[358584394,1745279438208,-10391.08082204,0.00024378,2]
[358584395,1745279438232,-4724.43685447,0.00024378,2]
[358584396,1745279438243,-252.5489143,0.00024378,2]
[358584397,1745279438254,-1880.69835713,0.00024489,2]
[358584398,1745279438265,-2340.84686564,0.00024509,2]
[358584399,1745279438278,-1042.32355646,0.00024509,2]
[358584400,1745279438290,-524.5171565,0.00024589,2]
[358584401,1745279438302,-223.382618,0.00024721,2]
[358584402,1745279438314,-160.0,0.00025058,2]
[358584403,1745279438326,-1908.30746842,0.00025058,2]
[358584404,1745279438336,-5000.0,0.00025064,2]
[358584405,1745279438347,-361.239449,0.000251,2]
[358584406,1745279438358,-361.239449,0.000251,2]
[358584407,1745279438368,-247.4567377,0.000251,2]
[358584408,1745279438379,-152.0,0.00025214,2]
[358584410,1745279438389,-250.0,0.00025609,2]
[358584411,1745279438400,-361.239449,0.00025641,2]
[358584413,1745279438410,-475.50740737,0.00025745,2]
[358584415,1745279438420,-475.50740733,0.00025752,2]
[358584416,1745279438430,-475.50740733,0.00025759,2]
[358584417,1745279438440,-475.50740733,0.00025766,2]
[358584418,1745279438450,-475.50740733,0.00025773,2]
[358584419,1745279438461,-1000.0,0.00025777,2]
[358584420,1745279438470,-151.0,0.0002584,2]
[358584421,1745279438480,-500.0,0.00025843,2]
[358584422,1745279438491,-500.0,0.00025843,2]
[358584423,1745279438501,-500.0,0.00025843,2]
[358584424,1745279438511,-500.0,0.00025843,2]
[358584425,1745279438521,-500.0,0.00025843,2]
[358584426,1745279438531,-500.0,0.00025843,2]
[358584427,1745279438542,-500.0,0.00025843,2]
[358584428,1745279438554,-500.0,0.00025843,2]
[358584429,1745279438565,-500.0,0.00025843,2]
[358584430,1745279438577,-500.0,0.00025843,2]
[358584431,1745279438587,-500.0,0.00025843,2]
[358584432,1745279438597,-475.87168291,0.00025843,2]
[358584433,1745279438607,-500.0,0.00025843,2]
[358584434,1745279438617,-500.0,0.00025843,2]
[358584435,1745279438627,-500.0,0.00025843,2]
[358584436,1745279438637,-500.0,0.00025843,2]
[358584437,1745279438647,-500.0,0.00025843,2]
[358584438,1745279438657,-500.0,0.00025843,2]
[358584439,1745279438666,-500.0,0.00025843,2]
[358584440,1745279438676,-500.0,0.00025843,2]
[358584441,1745279438686,-500.0,0.00025843,2]
[358584442,1745279438696,-500.0,0.00025843,2]
[358584443,1745279438706,-500.0,0.00025843,2]
[358584444,1745279438717,-500.0,0.00025843,2]
[358584445,1745279438732,-500.0,0.00025843,2]
[358584446,1745279438743,-500.0,0.00025843,2]
[358584447,1745279438753,-500.0,0.00025843,2]
[358584448,1745279438762,-500.0,0.00025843,2]
[358584449,1745279438772,-500.0,0.00025843,2]
[358584450,1745279438780,-500.0,0.00025843,2]
[358584451,1745279438789,-195.03809552,0.00025843,2]
[358584452,1745279438798,-500.0,0.00025843,2]
[358584453,1745279438808,-500.0,0.00025843,2]
[358584454,1745279438818,-500.0,0.00025843,2]
[358584455,1745279438829,-500.0,0.00025843,2]
[358584456,1745279438838,-500.0,0.00025843,2]
[358584457,1745279438847,-167.6138399,0.00025844,2]
[358584458,1745279438857,-616.73079834,0.00025844,2]
[358584459,1745279438866,-151.0,0.00025845,7]
[358584460,1745279438876,-151.0,0.00025845,7]
[358584461,1745279438886,-76520.314877,0.00025845,2]
[358584462,1745279438895,-2062.75163587,0.00025845,2]
[358584463,1745279438904,-19381.45491979,0.00025845,2]
[358584464,1745279438913,-1766.66151525,0.00025845,3]
[358584465,1745279438923,-78818.13155971,0.00025845,2]
[358584467,1745279440327,-279.89651618,0.00025845,2]
[358584468,1745279440373,-52761.57891419,0.00025845,2]
[358584469,1745279440385,-2871.17374703,0.00025845,2]
[358584470,1745279440425,-171350.47877089,0.00025845,2]
[358584471,1745279440435,-16502.013087,0.00025845,2]
[358584472,1745279440445,-151.0,0.00025854,7]
[358584473,1745279440454,-151.0,0.00025854,7]
[358584474,1745279440464,-152.025686,0.00025854,7]
[358584475,1745279440474,-152.025686,0.00025854,7]
[358584476,1745279440484,-2062.75163587,0.00025855,2]
[358584477,1745279440494,-362.367868,0.00025855,7]
[358584478,1745279440503,-362.367868,0.00025855,7]
[358584479,1745279440513,-362.367868,0.00025855,7]
[358584480,1745279440523,-362.367868,0.00025855,7]
[358584481,1745279440532,-151.0,0.00025855,7]
[358584482,1745279440542,-151.0,0.00025855,7]
[358584483,1745279440551,-152.994779,0.00025855,7]
[358584484,1745279440560,-151.0,0.00025855,7]
[358584485,1745279440570,-151.0,0.00025855,7]
[358584486,1745279440580,-172.203451,0.00025855,7]
[358584487,1745279440590,-151.0,0.00025855,7]
[358584488,1745279440599,-288.00086,0.00025855,7]
[358584489,1745279440609,-437.592898,0.00025855,7]
[358584490,1745279440618,-437.592898,0.00025855,7]
[358584491,1745279440628,-437.592898,0.00025855,7]
[358584492,1745279440638,-437.592898,0.00025855,7]
[358584493,1745279440647,-437.592898,0.00025855,7]
[358584494,1745279440657,-437.592898,0.00025855,7]
[358584495,1745279440667,-264.680879,0.00025855,7]
[358584496,1745279440676,-264.680879,0.00025855,7]
[358584497,1745279440687,-264.680879,0.00025855,7]
[358584498,1745279440696,-264.680879,0.00025855,7]
[358584499,1745279440706,-264.680879,0.00025855,7]
[358584500,1745279440716,-264.680879,0.00025855,7]
[358584501,1745279440728,-151.0,0.00025855,7]
[358584502,1745279440738,-151.0,0.00025855,7]
[358584503,1745279440748,-152.025686,0.00025855,7]
[358584504,1745279440758,-152.025686,0.00025855,7]
[358584505,1745279440768,-151.0,0.00025855,7]
[358584506,1745279440779,-151.0,0.00025855,7]
[358584507,1745279440789,-151.0,0.00025855,7]
[358584508,1745279440800,-152.025686,0.00025855,7]
[358584509,1745279440809,-152.025686,0.00025855,7]
[358584510,1745279440818,-151.0,0.00025855,7]
[358584511,1745279440829,-151.0,0.00025855,7]
[358584512,1745279440838,-151.0,0.00025855,7]
[358584513,1745279440847,-1293.25250133,0.00025855,2]
[358584514,1745279443019,-3239.21286451,0.00025855,2]
[358584515,1745279443073,-11969.54772116,0.00025855,2]
[358584516,1745279443082,-151.0,0.00025864,7]
[358584517,1745279443092,-155.063928,0.00025864,7]
[358584518,1745279443101,-151.0,0.00025864,7]
[358584519,1745279443111,-151.0,0.00025864,7]
[358584520,1745279443120,-151.0,0.00025864,7]
[358584522,1745279443130,-151.0,0.00025864,7]
[358584524,1745279443139,-151.0,0.00025864,7]
[358584526,1745279443148,-151.0,0.00025864,7]
[358584527,1745279443158,-1864.238861,0.00025864,2]
[358584529,1745279443167,-1864.238861,0.00025864,2]
[358584531,1745279443176,-1864.238861,0.00025864,2]
[358584532,1745279443185,-1864.238861,0.00025864,2]
[358584533,1745279443195,-1339.79724,0.00025864,7]
[358584534,1745279443204,-1339.79724,0.00025864,7]
[358584535,1745279443214,-1339.79724,0.00025864,7]
[358584536,1745279443223,-1339.79724,0.00025864,7]
[358584537,1745279443233,-160.518658,0.00025865,7]
[358584538,1745279443242,-151.0,0.00025865,7]
[358584539,1745279443251,-151.0,0.00025865,7]
[358584540,1745279443260,-151.0,0.00025865,7]
[358584541,1745279443270,-151.0,0.00025865,7]
[358584542,1745279443280,-298.20520334,0.00025865,7]
[358584543,1745279443291,-294.20625066,0.00025865,7]
[358584544,1745279443301,-592.411454,0.00025865,7]
[358584545,1745279443311,-151.0,0.00025865,7]
[358584546,1745279443321,-1471.918688,0.00025865,7]
[358584547,1745279443331,-1471.918688,0.00025865,7]
[358584548,1745279443340,-240.61115,0.00025865,7]
[358584549,1745279443350,-240.61115,0.00025865,7]
[358584550,1745279443359,-253.166332,0.00025865,7]
[358584551,1745279443369,-151.0,0.00025865,7]
[358584552,1745279443379,-269.269876,0.00025865,7]
[358584553,1745279443388,-151.0,0.00025865,7]
[358584554,1745279443398,-1864.238861,0.00025865,2]
[358584555,1745279443407,-1864.238861,0.00025865,2]
[358584556,1745279443416,-1.41619585,0.00025865,7]
[358584557,1745279443428,-232.39098315,0.00025865,7]
[358584558,1745279443438,-146.20338145,0.00025865,7]
[358584559,1745279443449,-87.60379755,0.00025865,7]
[358584560,1745279443459,-362.367868,0.00025865,7]
[358584561,1745279443468,-362.367868,0.00025865,7]
[358584562,1745279443477,-1339.79724,0.00025865,7]
[358584563,1745279443487,-420.65680271,0.00025865,7]
[358584564,1745279443497,-1339.79724,0.00025865,7]
[358584565,1745279443506,-217.140272,0.00025865,7]
[358584566,1745279443516,-217.140272,0.00025865,7]
[358584567,1745279443526,-437.592898,0.00025865,7]
[358584568,1745279443535,-437.592898,0.00025865,7]
[358584569,1745279443545,-264.680879,0.00025865,7]
[358584570,1745279443554,-264.680879,0.00025865,7]
[358584571,1745279443564,-160.0,0.00025865,7]
[358584572,1745279443575,-154.995268,0.00025865,7]
[358584573,1745279443584,-152.025686,0.00025865,7]
[358584574,1745279443594,-151.0,0.00025865,7]
[358584575,1745279443603,-152.025686,0.00025865,7]
[358584576,1745279443612,-151.0,0.00025865,7]
[358584577,1745279443621,-4059.45468165,0.00025865,2]
[358584579,1745279446013,-32608.42023155,0.00025865,2]
[358584580,1745279446026,-799.99939,0.00025865,2]
[358584581,1745279446067,-9818.11819049,0.00025865,2]
[358584582,1745279446079,-947.67,0.00025865,2]
[358584583,1745279446090,-14593.50405104,0.00025865,2]
[358584584,1745279446102,-30137.11406372,0.00025865,2]
[358584585,1745279446113,-654.60364045,0.00025865,2]
[358584586,1745279446124,-463.3,0.00025865,2]
[358584587,1745279446159,-1306.51452931,0.00025865,2]
[358584588,1745279446170,-647.01848232,0.00025865,2]
[358584590,1745279446182,-6424.48046282,0.00025865,2]
[358584591,1745279446193,-500.0,0.00025865,2]
[358584592,1745279446205,-4678.36621142,0.00025865,2]
[358584607,1745280631847,-2192.74343166,0.00023491,2]
[358584610,1745280632021,-86.83464104,0.00023491,2]
[358584611,1745280632032,-160.323252,0.00023491,2]
[358584612,1745280632043,-24.91373064,0.00023606,2]
[358584613,1745280632055,-1175.08626936,0.00023606,2]
[358584614,1745280632067,-160.323252,0.00023609,2]
[358584615,1745280632077,-233.47026977,0.00023665,2]
[358584617,1745280632086,-1000.0,0.00023675,2]
[358584619,1745280632097,-648.28666775,0.00023765,2]
[358584621,1745280632106,-3177.15953338,0.0002411,2]
[358584632,1745280638263,-432.19111183,0.0002201,2]
[358584633,1745280638273,-1959.32316471,0.0002411,2]
[358584634,1745280638285,-3489.84719781,0.0002411,2]
[358584651,1745280640511,-1351.9219499,0.0002411,2]
[358584652,1745280640522,-570.98594543,0.0002411,2]
[358584653,1745280640534,-812.61659362,0.0002411,2]
[358584662,1745280644425,-13538.14561515,0.0002411,2]
[358584663,1745280644436,-204.9603188,0.00024265,2]
[358584664,1745280644549,-1885.3975287,0.00024758,2]
[358584665,1745280644559,-160.0,0.00025726,2]
[358584666,1745280644569,-1680.0,0.00025728,2]
[358584667,1745280644579,-193.2970498,0.00025733,2]
[358584668,1745280644588,-330.65240921,0.00025733,2]
[358584669,1745280644598,-500.0,0.00025733,2]
[358584670,1745280644609,-500.0,0.00025733,2]
[358584671,1745280644621,-500.0,0.00025733,2]
[358584672,1745280644635,-500.0,0.00025733,2]
[358584673,1745280644645,-500.0,0.00025733,2]
[358584674,1745280644654,-500.0,0.00025733,2]
[358584675,1745280644664,-500.0,0.00025733,2]
[358584676,1745280644674,-500.0,0.00025733,2]
[358584677,1745280644685,-500.0,0.00025733,2]
[358584678,1745280644695,-500.0,0.00025733,2]
[358584679,1745280644704,-500.0,0.00025733,2]
[358584680,1745280644714,-500.0,0.00025733,2]
[358584681,1745280644723,-94.66444813,0.00025733,2]
[358584682,1745280644748,-344.95327808,0.00025733,2]
[358584683,1745280644760,-60.38227379,0.00025733,2]
[358584684,1745280644769,-500.0,0.00025733,2]
[358584685,1745280644780,-500.0,0.00025733,2]
[358584686,1745280644790,-246.85607492,0.00025733,2]
[358584687,1745280644801,-253.14392508,0.00025733,2]
[358584688,1745280644811,-500.0,0.00025733,2]
[358584689,1745280644820,-490.44308312,0.00025733,2]
[358584690,1745280644832,-9.55691688,0.00025733,2]
[358584691,1745280644842,-380.90299793,0.00025733,2]
[358584706,1745280646148,-119.09700207,0.00025733,2]
[358584707,1745280646160,-500.0,0.00025733,2]
[358584708,1745280646171,-500.0,0.00025733,2]
[358584709,1745280646180,-500.0,0.00025733,2]
[358584710,1745280646190,-500.0,0.00025733,2]
[358584711,1745280646201,-500.0,0.00025733,2]
[358584712,1745280646211,-500.0,0.00025733,2]
[358584713,1745280646221,-500.0,0.00025733,2]
[358584714,1745280646231,-500.0,0.00025733,2]
[358584715,1745280646242,-500.0,0.00025733,2]
[358584716,1745280646251,-500.0,0.00025733,2]
[358584717,1745280646264,-500.0,0.00025733,2]
[358584718,1745280646274,-500.0,0.00025733,2]
[358584719,1745280646283,-500.0,0.00025733,2]
[358584720,1745280646293,-500.0,0.00025733,2]
[358584721,1745280646303,-500.0,0.00025733,2]
[358584722,1745280646312,-500.0,0.00025733,2]
[358584723,1745280646323,-500.0,0.00025733,2]
[358584724,1745280646332,-500.0,0.00025733,2]
[358584725,1745280646341,-500.0,0.00025733,2]
[358584726,1745280646351,-500.0,0.00025733,2]
[358584727,1745280646360,-500.0,0.00025733,2]
[358584728,1745280646370,-500.0,0.00025733,2]
[358584729,1745280646379,-500.0,0.00025733,2]
[358584730,1745280646389,-500.0,0.00025733,2]
[358584731,1745280646398,-500.0,0.00025733,2]
[358584732,1745280646407,-500.0,0.00025733,2]
[358584733,1745280646417,-500.0,0.00025733,2]
[358584734,1745280646426,-500.0,0.00025733,2]
[358584735,1745280646436,-500.0,0.00025733,2]
[358584736,1745280646445,-500.0,0.00025733,2]
[358584737,1745280646455,-500.0,0.00025733,2]
[358584738,1745280646464,-500.0,0.00025733,2]
[358584739,1745280646474,-500.0,0.00025733,2]
[358584740,1745280646483,-500.0,0.00025733,2]
[358584741,1745280646493,-202.38209713,0.00025733,2]
[358584742,1745280646503,-500.0,0.00025733,2]
[358584743,1745280646513,-500.0,0.00025733,2]
[358584744,1745280646524,-500.0,0.00025733,2]
[358584745,1745280646534,-500.0,0.00025733,2]
[358584746,1745280646544,-500.0,0.00025733,2]
[358584747,1745280646553,-500.0,0.00025733,2]
[358584748,1745280646563,-500.0,0.00025733,2]
[358584749,1745280646573,-500.0,0.00025733,2]
[358584750,1745280646583,-20273.97375105,0.00025734,2]
[358584751,1745280646600,-709.82680776,0.00025734,2]
[358584752,1745280646612,-909.64364974,0.00025734,2]
[358584773,1745280903156,26644.37335752,0.00019,2]
[358584797,1745281203099,26644.37335752,0.00019,2]
[358584834,1745281832205,-1200.0,0.00021999,2]
[358584835,1745281832214,-6111.16249738,0.00022,7]
[358584836,1745281832225,-500.0,0.00022,7]
[358584872,1745281838390,-7964.20863542,0.00022,7]
[358584873,1745281838400,-162.421629,0.00023417,2]
[358584874,1745281838410,-420.65680271,0.00024,7]
[358584875,1745281838419,-1680.0,0.00024018,2]
[358584876,1745281838429,-3000.0,0.000247,2]
[358584877,1745281838438,-24900.0,0.00024734,2]
[358584878,1745281838448,-1543.853619,0.00024734,2]
[358584879,1745281838457,-500.0,0.00024999,2]
[358584880,1745281838467,-500.0,0.00024999,2]
[358584881,1745281838476,-500.0,0.00024999,2]
[358584882,1745281838485,-500.0,0.00024999,2]
[358584883,1745281838495,-500.0,0.00024999,2]
[358584884,1745281838506,-500.0,0.00024999,2]
[358584885,1745281838515,-500.0,0.00024999,2]
[358584886,1745281838524,-500.0,0.00024999,2]
[358584887,1745281838533,-500.0,0.00024999,2]
[358584888,1745281838542,-500.0,0.00024999,2]
[358584889,1745281838551,-500.0,0.00024999,2]
[358584890,1745281838560,-500.0,0.00024999,2]
[358584891,1745281838569,-531.40655225,0.00024999,2]
[358584892,1745281838578,-500.0,0.00024999,2]
[358584893,1745281838587,-500.0,0.00024999,2]
[358584894,1745281838596,-500.0,0.00024999,2]
[358584895,1745281838605,-500.0,0.00024999,2]
[358584896,1745281838614,-500.0,0.00024999,2]
[358584897,1745281838623,-9560.72660773,0.00025,7]
[358584898,1745281838636,-11257.11231405,0.00025,2]
[358584899,1745281838647,-666.7647547,0.00025,2]
[358584900,1745281838661,-7246.36251094,0.00025,2]
[358584901,1745281838671,-151.0,0.00025629,2]
[358584902,1745281838681,-207.4,0.00025629,2]
[358584903,1745281838690,-260.3324763,0.00025633,2]
[358584904,1745281838700,-500.0,0.00025633,2]
[358584905,1745281838710,-327.36406288,0.00025633,2]
[358584906,1745281838720,-3306.72016083,0.00025634,2]
[358584907,1745281838732,-10073.00015152,0.00025634,2]
[358584908,1745281838743,-491.56395562,0.00025634,2]
[358584909,1745281838755,-285.43980486,0.00025634,2]
[358584910,1745281838790,1062.8785313,0.000199,2]
[358584935,1745281840441,-1062.8785313,0.000249,2]
[358584936,1745281840452,-6875.56718154,0.00025634,2]
[358584937,1745281840462,-883.33075763,0.00025634,3]
[358584939,1745281840471,-82954.94321772,0.00025634,2]
[358584940,1745281840499,-1867.854828,0.00025634,2]
[358584941,1745281843189,-716.5618136,0.00025634,2]
[358584942,1745281843202,-230341.73672573,0.00025634,2]
[358584943,1745281843249,-309.09050623,0.00025634,2]
[358584944,1745281843260,-11924.25208273,0.00025634,2]
[358584947,1745282190174,-363.21406,0.00035,120]
[358584948,1745282190197,-136.78594,0.00035,120]
[358584995,1745283032278,-870.79359271,0.00023534,2]
[358584997,1745283032288,-152.68707532,0.00023721,2]
[358584998,1745283032298,-162.4216305,0.00023821,2]
[358584999,1745283032308,-152.68707532,0.00023971,2]
[358585000,1745283032317,-641.9818793,0.00024042,2]
[358585001,1745283032327,-1235.082895,0.00024112,2]
[358585002,1745283032336,-833.06307646,0.00024133,2]
[358585049,1745283038489,-366.93692354,0.00024133,2]
[358585051,1745283038500,-300.0,0.00024134,2]
[358585053,1745283038510,-920.09304213,0.00024135,2]
[358585122,1745283041291,506.72763165,0.00025,120]
[358585134,1745283043406,-418.19862863,0.00024135,2]
[358585135,1745283043421,-6014.4450376,0.00024135,2]
[358585136,1745283043434,-8091.17668774,0.00024135,2]
[358585137,1745283043444,-902.5681354,0.00024155,2]
[358585138,1745283043454,-152.68707532,0.00024222,2]
[358585139,1745283043463,-152.68707532,0.00024472,2]
[358585140,1745283043473,-152.68707532,0.00024722,2]
[358585141,1745283043482,-861.36890537,0.00024761,2]
[358585142,1745283043494,-1807.80600523,0.00024861,2]
[358585143,1745283043504,-1807.80600523,0.00024878,2]
[358585144,1745283043513,-1807.80600523,0.00024881,2]
[358585145,1745283043523,-1807.80600523,0.00024883,2]
[358585146,1745283043533,-152.68707532,0.00024972,2]
[358585147,1745283043543,-152.68707532,0.00025223,2]
[358585148,1745283043552,-1767.49060299,0.00025389,2]
[358585149,1745283043562,-152.68707532,0.00025473,2]
[358585150,1745283043571,-151.0,0.00025519,2]
[358585151,1745283043581,-151.0,0.00025519,2]
[358585152,1745283043590,-151.0,0.00025519,2]
[358585153,1745283043600,-207.4,0.00025519,2]
[358585154,1745283043609,-579.15484402,0.00025523,2]
[358585155,1745283043619,-500.0,0.00025523,2]
[358585156,1745283043628,-503.48961692,0.00025523,2]
[358585157,1745283043638,-24902.96974341,0.00025524,2]
[358585269,1745284232485,-678.14957645,0.00023424,2]
[358585270,1745284232494,-1520.81042355,0.00024283,2]
[358585323,1745284238748,-478.97283405,0.00024283,2]
[358585324,1745284238758,-1200.0,0.00024376,2]
[358585325,1745284238767,-300.0,0.00024376,2]
[358585326,1745284238777,-576.98894532,0.00024377,2]
[358585327,1745284238807,-9906.92087778,0.00024377,2]
[358585328,1745284238818,-988.066316,0.00024433,2]
[358585329,1745284238828,-160.0,0.00024943,2]
[358585330,1745284238837,-3006.95,0.00025,2]
[358585331,1745284238848,-324.3747167,0.000253,2]
[358585332,1745284238857,-1546.55427759,0.00025304,2]
[358585333,1745284238868,-304.55809338,0.00025403,2]
[358585334,1745284238877,-500.0,0.00025403,2]
[358585335,1745284238886,-500.0,0.00025403,2]
[358585336,1745284238896,-500.0,0.00025403,2]
[358585337,1745284238907,-500.0,0.00025403,2]
[358585338,1745284238916,-392.74950678,0.00025403,2]
[358585339,1745284238926,-500.0,0.00025403,2]
[358585340,1745284238935,-500.0,0.00025403,2]
[358585341,1745284238944,-500.0,0.00025403,2]
[358585342,1745284238954,-500.0,0.00025403,2]
[358585343,1745284238963,-500.0,0.00025403,2]
[358585344,1745284238972,-500.0,0.00025403,2]
[358585345,1745284238981,-500.0,0.00025403,2]
[358585346,1745284238990,-500.0,0.00025403,2]
[358585347,1745284238999,-370.97678438,0.00025403,2]
[358585348,1745284239008,-500.0,0.00025403,2]
[358585349,1745284239017,-500.0,0.00025403,2]
[358585350,1745284239028,-500.0,0.00025403,2]
[358585351,1745284239037,-500.0,0.00025403,2]
[358585352,1745284239045,-500.0,0.00025403,2]
[358585353,1745284239055,-500.0,0.00025403,2]
[358585354,1745284239064,-500.0,0.00025403,2]
[358585355,1745284239074,-500.0,0.00025403,2]
[358585356,1745284239083,-10516.14562719,0.00025404,2]
[358585357,1745284239092,-441.66537881,0.00025404,3]
[358585358,1745284239101,-11611.13854536,0.00025404,2]
[358585361,1745284240976,-117855.12922289,0.00025404,2]
[358585369,1745284246518,-46357.08330887,0.00025404,2]
[358585370,1745284246532,-10728.35011301,0.00025404,2]
[358585371,1745284246543,-17396.03716689,0.00025404,2]
[358585375,1745284927335,160.0,0.0002,3]
[358585386,1745285152901,849.59449769,0.000189,2]
[358585390,1745285275370,143933.86154254,0.00018,2]
[358585396,1745285320784,15983.68459399,0.00017,2]
[358585397,1745285328224,2270.324407,0.0002,120]
[358585398,1745285330185,9529.84045649,0.00015,2]
[358585465,1745285432626,-451.12721161,0.0002061,2]
[358585484,1745285433177,-155.87278839,0.0002061,2]
[358585485,1745285433187,-849.59449769,0.000239,2]
[358585486,1745285433197,-790.453052,0.00024049,2]
[358585487,1745285433206,-670.3962571,0.00024668,2]
[358585488,1745285433216,-1499.84555486,0.00024872,2]
[358585489,1745285433226,-300.0,0.00024872,2]
[358585490,1745285433236,-1200.0,0.00024872,2]
[358585491,1745285433246,-276.40643789,0.00024872,2]
[358585492,1745285433260,-155.06662076,0.00024873,2]
[358585493,1745285433270,-500.0,0.00024873,2]
[358585494,1745285433279,-501.62145296,0.00024873,2]
[358585495,1745285433289,-500.0,0.00024873,2]
[358585496,1745285433303,-500.0,0.00024873,2]
[358585497,1745285433313,-500.0,0.00024873,2]
[358585498,1745285433322,-500.0,0.00024873,2]
[358585499,1745285433332,-1422.46250554,0.00024873,2]
[358585500,1745285433428,-48577.53749446,0.00024873,2]
[358585501,1745285433438,-500.0,0.00024889,2]
[358585502,1745285433447,-200.5755483,0.00024889,2]
[358585503,1745285433457,-500.0,0.00024889,2]
[358585504,1745285433468,-191.68753077,0.00024889,2]
[358585505,1745285433477,-11548.43738085,0.0002489,2]
[358585506,1745285433489,-149556.62140099,0.0002489,2]
[358585525,1745285438886,-500.0,0.00024889,2]
[358585526,1745285438896,-500.0,0.00024889,2]
[358585527,1745285438905,-474.68474239,0.00024889,2]
[358585528,1745285438917,-25.31525761,0.00024889,2]
[358585529,1745285438927,-500.0,0.00024889,2]
[358585530,1745285438936,-500.0,0.00024889,2]
[358585531,1745285438946,-500.0,0.00024889,2]
[358585532,1745285438956,-500.0,0.00024889,2]